bitfinex-derivatives/quotes_SOLF0:USTF0_20250212
["timestamp","ask_amount","ask_price","bid_price","bid_amount"]
[1739397611730,0.03266853,195.84,195.81,7.0914433]
[1739397612535,5.1064,195.82,195.81,7.0914433]
[1739397612733,0.03266853,195.84,195.81,7.0914433]
[1739397613042,5.1062,195.83,195.8,0.03296934]
[1739397613337,0.03266853,195.84,195.8,0.03296934]
[1739397613728,5.1062,195.83,195.8,0.03296934]
[1739397614339,5.1064,195.82,195.8,0.03296934]
[1739397615037,0.03266853,195.84,195.8,0.03296934]
[1739397615231,5.1062,195.83,195.8,0.03296934]
[1739397615634,0.03266853,195.84,195.8,0.03296934]
[1739397615835,5.1062,195.83,195.8,0.03296934]
[1739397616036,0.03266853,195.84,195.8,0.03296934]
[1739397616638,5.1064,195.83,195.8,0.03296934]
[1739397617843,5.1065,195.82,195.8,0.03296934]
[1739397618735,5.1067,195.81,195.8,0.03296934]
[1739397619940,0.03266853,195.84,195.8,0.03296934]
[1739397620439,0.03266853,195.84,195.82,5.1064]
[1739397620841,0.03266853,195.84,195.8,0.03296934]
[1739397621635,5.1065,195.82,195.8,0.03296934]
[1739397622142,5.1067,195.81,195.8,0.03296934]
[1739397624045,19.18344711,195.81,195.8,0.03296934]
[1739397628550,14.07674711,195.81,195.8,0.03296934]
[1739397628755,5.1065,195.82,195.8,0.03296934]
[1739397630048,14.10941564,195.84,195.8,0.03296934]
[1739397630357,5.1067,195.81,195.8,0.03296934]
[1739397630557,14.10941564,195.84,195.8,5.13996934]
[1739397630853,5.13856853,195.84,195.8,0.03296934]
[1739397631049,0.03266853,195.84,195.8,0.03296934]
[1739397631350,5.1039,195.92,195.83,14.07674711]
[1739397631743,14.07674711,195.93,195.83,14.07674711]
[1739397632050,19.18034711,195.93,195.89,5.1044]
[1739397632453,19.2167315,195.93,195.89,5.14220453]
[1739397632755,14.1131315,195.93,195.9,5.1043]
[1739397632956,14.1131315,195.93,195.89,0.03780453]
[1739397633756,14.07674711,195.9,195.89,0.03780453]
[1739397634455,19.18104711,195.9,195.89,0.03780453]
[1739397635654,14.07674711,195.9,195.89,0.03780453]
[1739397635851,14.1131315,195.93,195.89,0.03780453]
[1739397636352,19.2169315,195.93,195.89,0.03780453]
[1739397637148,14.1131315,195.93,195.89,0.03780453]
[1739397637752,14.1131315,195.93,195.91,5.1041]
[1739397637954,0.03638439,195.93,195.89,0.03780453]
[1739397639758,0.03638439,195.93,195.92,5.1038]
[1739397640355,0.03638439,195.93,195.89,14.11455164]
[1739397640356,5.102,196.0,195.89,14.11455164]
[1739397640556,14.07674711,196.02,195.97,5.1025]
[1739397641159,5.1017,196.01,195.97,5.1025]
[1739397641352,14.07674711,196.02,195.97,5.1025]
[1739397641652,0.03521361,196.01,195.97,5.13564512]
[1739397642059,5.13671361,196.01,195.97,5.13564512]
[1739397642858,0.03521361,196.01,195.98,5.1023]
[1739397643855,5.13681361,196.01,195.97,5.13564512]
[1739397647071,5.13681361,196.01,195.98,5.1022]
[1739397647364,5.13681361,196.01,195.97,0.03314512]
[1739397647670,5.13681361,196.01,195.97,5.13554512]
[1739397648369,5.1018,196.0,195.97,5.13554512]
[1739397649365,5.1018,196.0,195.97,0.03314512]
[1739397649571,5.1018,196.0,195.97,5.13564512]
[1739397652574,0.03521361,196.01,196.0,5.1017]
[1739397655476,5.1002,196.06,196.03,5.1009]
[1739397655974,14.07674711,196.11,195.98,14.07674711]
[1739397656378,0.03393289,196.06,196.04,5.1007]
[1739397656567,0.03393289,196.06,196.03,0.03863945]
[1739397657077,0.03393289,196.06,196.04,5.1006]
[1739397658181,0.03393289,196.06,196.05,5.1004]
[1739397659176,0.03393289,196.06,196.03,0.03863945]
[1739397659177,14.07674711,196.14,196.04,15.68504711]
[1739397659385,5.0985,196.13,196.09,5.0994]
[1739397659580,5.0985,196.13,196.04,15.68504711]
[1739397660281,14.07674711,196.17,196.07,14.11349018]
[1739397660480,0.03531109,196.1,196.07,14.11349018]
[1739397660675,14.07674711,196.17,196.07,14.11349018]
[1739397661373,5.0981,196.15,196.1,5.0989]
[1739397661679,14.07674711,196.17,196.1,5.0989]
[1739397661881,0.03399035,196.14,196.11,0.03572861]
[1739397662079,5.13239035,196.14,196.11,0.03572861]
[1739397664277,0.03399035,196.14,196.11,0.03572861]
[1739397664883,5.13229035,196.14,196.11,0.03572861]
[1739397665583,0.03399035,196.14,196.11,0.03572861]
[1739397665887,5.0984,196.13,196.11,0.03572861]
[1739397666686,5.13229035,196.14,196.11,0.03572861]
[1739397667390,0.03399035,196.14,196.11,0.03572861]
[1739397667889,5.0964,196.21,196.18,5.0971]
[1739397668289,14.07674711,196.23,196.13,14.07674711]
[1739397668490,5.0968,196.19,196.16,5.0974]
[1739397668785,14.07674711,196.23,196.13,14.07674711]
[1739397668986,0.03880995,196.18,196.15,5.0976]
[1739397669188,0.03880995,196.18,196.14,0.03622563]
[1739397669390,14.07674711,196.17,196.14,0.03622563]
[1739397669785,5.0978,196.15,196.14,0.03622563]
[1739397677397,14.07674711,196.17,196.03,6.6306]
[1739397677693,8.99462831,196.1,196.04,8.99462831]
[1739397678085,5.0998,196.08,196.04,14.09512831]
[1739397678585,5.0998,196.08,196.04,14.13191262]
[1739397678586,5.13518897,196.08,196.04,14.13191262]
[1739397678790,0.03538897,196.08,196.04,9.03141262]
[1739397680291,9.03001728,196.08,196.04,0.03678431]
[1739397680696,5.1004,196.05,196.04,0.03678431]
[1739397681395,5.1002,196.06,196.04,0.03678431]
[1739397682197,9.03001728,196.08,196.05,5.1002]
[1739397682895,14.12991728,196.08,196.05,5.1002]
[1739397684695,5.13528897,196.08,196.05,5.1002]
[1739397685902,0.03538897,196.08,196.07,5.0999]
[1739397688104,5.0984,196.13,196.1,5.099]
[1739397688304,5.0984,196.13,196.1,14.09362831]
[1739397688607,5.098,196.15,196.12,5.0986]
[1739397688903,8.99462831,196.18,196.12,8.99462831]
[1739397689204,5.13647018,196.17,196.13,0.0340882]
[1739397689904,5.13647018,196.17,196.14,5.098]
[1739397690603,5.13647018,196.17,196.13,5.1323882]
[1739397691000,56.50456242,196.3,196.13,0.0340882]
[1739397691208,8.99462831,196.29,196.24,8.99462831]
[1739397691404,8.99462831,196.31,196.26,8.99462831]
[1739397691706,8.99462831,196.33,196.3,5.0939]
[1739397691908,8.99462831,196.33,196.28,8.99462831]
[1739397692102,8.99462831,196.33,196.26,8.99462831]
[1739397692303,0.03700558,196.32,196.29,0.03524221]
[1739397693100,8.99462831,196.31,196.29,0.03524221]
[1739397693707,14.06199853,196.32,196.29,0.03524221]
[1739397694607,0.03700558,196.32,196.29,0.03524221]
[1739397695998,0.03700558,196.32,196.31,5.0937]
[1739397697706,14.02499295,196.41,196.37,5.0921]
[1739397697909,14.02499295,196.41,196.29,14.06023516]
[1739397698106,14.02499295,196.41,196.29,14.02499295]
[1739397698813,0.03222827,196.37,196.33,0.03890225]
[1739397699205,0.03222827,196.37,196.34,5.0929]
[1739397700208,0.03222827,196.37,196.35,5.0926]
[1739397700805,0.03222827,196.37,196.34,5.0929]
[1739397701712,0.03222827,196.37,196.35,5.0925]
[1739397701916,0.03222827,196.37,196.33,0.03890225]
[1739397702407,0.03222827,196.37,196.35,5.0926]
[1739397702714,0.03222827,196.37,196.33,0.03890225]
[1739397702908,0.03222827,196.37,196.36,5.0924]
[1739397704709,5.0908,196.42,196.35,14.02499295]
[1739397704910,17.22329295,196.47,196.35,14.02499295]
[1739397705112,14.02499295,196.44,196.33,1.6131]
[1739397705914,0.02874308,196.4,196.37,0.03488277]
[1739397706116,14.02499295,196.41,196.37,0.03488277]
[1739397706316,5.0919,196.38,196.37,0.03488277]
[1739397708319,5.093,196.34,196.3,5.0937]
[1739397708518,14.02499295,196.38,196.26,14.02499295]
[1739397709115,5.0931,196.34,196.3,5.0939]
[1739397709517,5.13100761,196.34,196.3,5.1261648]
[1739397710118,0.03790761,196.34,196.33,5.0932]
[1739397711418,0.03790761,196.34,196.32,5.0934]
[1739397712013,0.03790761,196.34,196.3,0.0322648]
[1739397713118,5.0937,196.31,196.3,0.0322648]
[1739397714020,0.03790761,196.34,196.3,0.0322648]
[1739397714214,5.0935,196.32,196.3,0.0322648]
[1739397715715,5.0937,196.31,196.3,0.0322648]
[1739397717018,5.0945,196.28,196.18,18.71469295]
[1739397717216,14.02499295,196.29,196.18,18.71469295]
[1739397718112,0.03397792,196.25,196.22,0.039]
[1739397718308,0.03397792,196.25,196.22,5.135]
[1739397718709,0.03397792,196.25,196.22,0.039]
[1739397718916,0.03397792,196.25,196.23,5.0956]
[1739397719117,0.03397792,196.25,196.22,0.039]
[1739397720923,0.03397792,196.25,196.24,5.0955]
[1739397721314,0.03397792,196.25,196.22,5.135]
[1739397721524,0.03397792,196.25,196.22,0.039]
[1739397722019,0.03397792,196.25,196.23,5.0957]
[1739397723323,0.03397792,196.25,196.24,5.0955]
[1739397723520,0.03397792,196.25,196.22,0.039]
[1739397723922,5.12927792,196.25,196.22,5.135]
[1739397724822,0.03397792,196.25,196.22,0.039]
[1739397725023,0.03397792,196.25,196.24,5.0955]
[1739397727023,0.03397792,196.25,196.22,0.039]
[1739397727525,5.0957,196.24,196.22,0.039]
[1739397728522,5.0958,196.23,196.22,0.039]
[1739397735328,5.0956,196.24,196.22,0.039]
[1739397735827,0.03397792,196.25,196.22,0.039]
[1739397736023,5.0955,196.24,196.22,0.039]
[1739397736223,14.02499295,196.23,196.22,0.039]
[1739397736423,19.12079295,196.23,196.22,0.039]
[1739397737625,19.12079295,196.23,196.13,3.2738]
[1739397737626,5.0967,196.2,196.16,5.0973]
[1739397737826,14.02499295,196.23,196.13,3.2738]
[1739397738027,14.02499295,196.2,196.13,3.2738]
[1739397738327,14.02499295,196.2,196.16,5.0974]
[1739397738726,14.02499295,196.23,196.16,5.0974]
[1739397738927,0.03785728,196.2,196.16,5.13480156]
[1739397739428,0.03785728,196.2,196.17,5.0971]
[1739397740227,5.13435728,196.2,196.17,5.0971]
[1739397740531,0.03785728,196.2,196.18,5.0971]
[1739397740728,0.03785728,196.2,196.16,0.03740156]
[1739397741231,0.03785728,196.2,196.19,5.0968]
[1739397742630,114.94499295,196.4,196.19,5.0968]
[1739397742631,14.02499295,196.29,196.23,5.0956]
[1739397743121,5.0949,196.27,196.23,5.0956]
[1739397743330,14.02499295,196.29,196.23,5.0956]
[1739397743525,5.0952,196.26,196.24,0.03640037]
[1739397743722,0.03800689,196.28,196.24,0.03640037]
[1739397743922,14.02499295,196.26,196.24,0.03640037]
[1739397744122,5.0952,196.25,196.24,0.03640037]
[1739397745228,14.02499295,196.26,196.13,31.33827341]
[1739397745229,5.0969,196.19,196.13,31.33827341]
[1739397745426,14.02499295,196.21,196.13,31.33827341]
[1739397746532,0.03301525,196.19,196.18,5.0969]
[1739397747237,1.5976,196.34,196.24,5.0955]
[1739397747436,4.724,196.34,196.18,14.02499295]
[1739397747634,4.724,196.34,196.19,1.5717]
[1739397748138,19.11899295,196.3,196.19,1.5717]
[1739397748437,0.0390015,196.26,196.23,0.03871769]
[1739397749828,5.1340015,196.26,196.23,0.03871769]
[1739397750029,0.0390015,196.26,196.23,0.03871769]
[1739397750338,5.0953,196.25,196.23,0.03871769]
[1739397750535,0.0390015,196.26,196.23,0.03871769]
[1739397751137,5.1342015,196.26,196.23,0.03871769]
[1739397751439,0.0390015,196.26,196.23,0.03871769]
[1739397752240,5.1340015,196.26,196.23,0.03871769]
[1739397752537,0.0390015,196.26,196.23,0.03871769]
[1739397754936,5.0952,196.25,196.23,0.03871769]
[1739397755240,0.0390015,196.26,196.23,0.03871769]
[1739397755639,5.0955,196.24,196.23,0.03871769]
[1739397758944,19.12049295,196.24,196.23,0.03871769]
[1739397759543,14.02499295,196.24,196.16,4.47554556]
[1739397759744,5.0973,196.17,196.16,4.47554556]
[1739397760241,5.0971,196.18,196.16,7.02952638]
[1739397760545,14.02499295,196.17,196.16,7.02952638]
[1739397761145,19.12229295,196.17,196.16,7.02952638]
[1739397761346,14.02499295,196.17,196.16,7.02952638]
[1739397762243,0.03308736,196.19,196.16,7.02952638]
[1739397763343,0.03308736,196.19,196.16,12.12692638]
[1739397763545,0.03308736,196.19,196.16,7.02952638]
[1739397764149,0.03308736,196.19,196.15,0.03871978]
[1739397765341,0.03308736,196.19,196.18,5.0971]
[1739397768950,0.03308736,196.19,196.15,0.03871978]
[1739397769153,14.02499295,196.16,196.15,0.03871978]
[1739397769351,14.05808031,196.19,196.15,0.03871978]
[1739397769654,0.03308736,196.19,196.15,0.03871978]
[1739397770548,0.03308736,196.19,196.16,5.0974]
[1739397771955,0.03308736,196.19,196.15,0.03871978]
[1739397773055,0.03308736,196.19,196.18,5.0971]
[1739397773255,14.02499295,196.25,196.15,14.06371273]
[1739397773653,14.02499295,196.25,196.23,5.0957]
[1739397778859,14.02499295,196.25,196.22,0.03785649]
[1739397779058,0.925342,196.24,196.15,7.02952638]
[1739397779263,14.02499295,196.2,196.15,7.02952638]
[1739397780053,0.03663217,196.19,196.16,0.03521462]
[1739397780858,14.02499295,196.17,196.16,0.03521462]
[1739397781061,19.12229295,196.17,196.16,0.03521462]
[1739397781361,14.02499295,196.17,196.13,82.93544136]
[1739397781665,19.12309295,196.14,196.13,82.93544136]
[1739397782257,14.02499295,196.14,196.13,82.93544136]
[1739397783161,14.02499295,196.14,196.12,0.03228049]
[1739397783567,14.02499295,196.14,196.04,4.47111742]
[1739397783768,14.02499295,196.08,196.04,4.47111742]
[1739397783967,14.02499295,196.11,196.04,4.47111742]
[1739397784564,14.02499295,196.14,196.04,4.47111742]
[1739397784768,14.02499295,196.27,196.13,14.02499295]
[1739397784965,0.92566721,196.26,196.17,14.02499295]
[1739397785269,14.02499295,196.3,196.22,5.0959]
[1739397785469,0.92550525,196.29,196.17,14.02499295]
[1739397785864,0.03759216,196.25,196.21,0.03588501]
[1739397787276,0.03759216,196.25,196.23,5.0957]
[1739397787465,0.03759216,196.25,196.21,0.03588501]
[1739397789067,0.03759216,196.25,196.21,5.13218501]
[1739397789677,0.03759216,196.25,196.22,5.0959]
[1739397790471,14.02499295,196.24,196.21,0.03588501]
[1739397790678,14.02499295,196.24,196.11,3.1935]
[1739397790877,14.02499295,196.19,196.11,3.1935]
[1739397791175,14.02499295,196.19,196.12,5.0984]
[1739397791770,14.02499295,196.19,196.11,3.1935]
[1739397791771,0.0372735,196.17,196.14,0.03681496]
[1739397794977,5.0978,196.15,196.14,0.03681496]
[1739397796678,14.02499295,196.16,196.04,1.5873]
[1739397796878,5.0989,196.11,196.04,1.5873]
[1739397797479,5.0993,196.1,196.05,5.1004]
[1739397797782,14.02499295,196.13,196.01,3.0342]
[1739397797978,0.03411212,196.09,196.06,0.03364335]
[1739397800479,0.03411212,196.09,196.06,5.13384335]
[1739397800779,0.03411212,196.09,196.06,0.03364335]
[1739397801377,5.13361212,196.09,196.06,0.03364335]
[1739397801581,0.03411212,196.09,196.06,0.03364335]
[1739397802683,5.13351212,196.09,196.06,0.03364335]
[1739397802883,0.03411212,196.09,196.06,0.03364335]
[1739397803181,5.13351212,196.09,196.06,0.03364335]
[1739397803376,0.03411212,196.09,196.06,0.03364335]
[1739397807683,0.03411212,196.09,196.06,5.13374335]
[1739397808187,0.03411212,196.09,196.06,0.03364335]
[1739397809076,5.13361212,196.09,196.06,0.03364335]
[1739397812792,0.03411212,196.09,196.06,0.03364335]
[1739397812992,5.0999,196.07,196.06,0.03364335]
[1739397816998,0.03411212,196.09,196.06,0.03364335]
[1739397817197,38.38099515,196.17,196.06,0.03364335]
[1739397817393,14.02499295,196.22,196.11,14.02499295]
[1739397817697,14.02499295,196.25,196.14,14.02499295]
[1739397818196,14.02499295,196.25,196.15,1.5949]
[1739397818392,0.03724712,196.21,196.18,0.0352992]
[1739397819594,0.03724712,196.21,196.18,5.1323992]
[1739397819793,0.03724712,196.21,196.18,0.0352992]
[1739397822307,5.0966,196.2,196.18,0.0352992]
[1739397822804,14.02499295,196.19,196.18,0.0352992]
[1739397823501,0.03724712,196.21,196.18,0.0352992]
[1739397824206,0.03724712,196.21,196.19,5.0968]
[1739397824906,0.03724712,196.21,196.2,5.0965]
[1739397825904,14.02499295,196.28,196.24,5.0954]
[1739397826105,19.11969295,196.28,196.24,5.0954]
[1739397826505,19.11969295,196.28,196.23,5.0957]
[1739397826706,19.11969295,196.28,196.17,14.02499295]
[1739397827002,0.03490896,196.24,196.17,14.02499295]
[1739397827208,0.03490896,196.24,196.21,0.0392525]
[1739397827808,0.03490896,196.24,196.22,5.096]
[1739397828812,0.03490896,196.24,196.21,5.1354525]
[1739397829006,0.03490896,196.24,196.21,0.0392525]
[1739397831016,5.0958,196.23,196.21,0.0392525]
[1739397831715,0.03490896,196.24,196.21,0.0392525]
[1739397833216,0.03490896,196.24,196.22,5.0958]
[1739397833411,0.03490896,196.24,196.21,0.0392525]
[1739397833718,5.13040896,196.24,196.21,0.0392525]
[1739397835017,0.03490896,196.24,196.21,0.0392525]
[1739397837519,0.03490896,196.24,196.21,5.1352525]
[1739397837819,0.03490896,196.24,196.21,0.0392525]
[1739397838009,5.13040896,196.24,196.21,0.0392525]
[1739397839812,0.03490896,196.24,196.21,0.0392525]
[1739397840018,5.096,196.22,196.21,0.0392525]
[1739397844713,8.98196202,196.23,196.06,8.98196202]
[1739397844918,8.98196202,196.12,196.06,8.98196202]
[1739397845915,0.03887504,196.11,196.07,0.03881888]
[1739397846313,8.98196202,196.1,196.07,0.03881888]
[1739397846523,8.98196202,196.08,196.07,0.03881888]
[1739397847221,14.08166202,196.08,196.07,0.03881888]
[1739397847621,5.0997,196.08,196.07,0.03881888]
[1739397848622,0.03887504,196.11,196.07,0.03881888]
[1739397850320,5.0994,196.1,196.07,0.03881888]
[1739397850618,0.03887504,196.11,196.07,0.03881888]
[1739397851028,14.05841975,196.09,196.07,0.03881888]
[1739397852028,5.0997,196.08,196.07,0.03881888]
[1739397860131,5.1015,196.01,196.0,25.0]
[1739397863235,5.13658155,196.02,196.0,25.0]
[1739397864535,0.03528155,196.02,196.0,25.0]
[1739397864932,0.03528155,196.02,196.0,26.5944]
[1739397865127,0.03528155,196.02,196.01,5.1015]
[1739397865937,14.05841975,196.1,196.03,5.1008]
[1739397866338,14.05841975,196.1,196.0,26.5944]
[1739397866537,14.05841975,196.1,196.01,5.1012]
[1739397866742,14.05841975,196.1,196.0,26.5944]
[1739397867033,5.1006,196.05,196.03,0.03247205]
[1739397867836,5.1007,196.04,196.03,0.03247205]
[1739397869540,14.09568282,196.07,196.03,0.03247205]
[1739397871141,5.1006,196.05,196.03,0.03247205]
[1739397873040,5.1004,196.06,196.03,0.03247205]
[1739397874239,14.09568282,196.07,196.03,0.03247205]
[1739397874942,14.09568282,196.07,196.05,5.1003]
[1739397874943,0.03726307,196.07,196.05,5.1003]
[1739397875443,0.03726307,196.07,196.03,0.03247205]
[1739397875642,0.03726307,196.07,196.04,5.1007]
[1739397876146,5.13716307,196.07,196.03,5.13337205]
[1739397877442,5.13716307,196.07,196.04,5.1007]
[1739397877944,0.03726307,196.07,196.05,5.1002]
[1739397878143,0.03726307,196.07,196.03,0.03247205]
[1739397878636,115.07841975,196.19,196.06,14.05841975]
[1739397878843,0.92616209,196.18,196.07,1.6086]
[1739397879039,5.0978,196.16,196.07,1.6086]
[1739397879243,115.07841975,196.19,196.08,1.562]
[1739397879442,0.92608114,196.18,196.08,1.562]
[1739397879839,115.07841975,196.19,196.08,1.562]
[1739397879840,0.03415615,196.15,196.11,0.03844203]
[1739397880041,5.13215615,196.15,196.11,0.03844203]
[1739397880739,5.13215615,196.15,196.11,5.13724203]
[1739397881345,0.03415615,196.15,196.11,0.03844203]
[1739397881846,0.03415615,196.15,196.12,5.0984]
[1739397882243,0.03415615,196.15,196.11,0.03844203]
[1739397883043,5.0983,196.14,196.11,0.03844203]
[1739397883444,0.03415615,196.15,196.11,0.03844203]
[1739397883941,5.0982,196.14,196.11,0.03844203]
[1739397884149,0.03415615,196.15,196.11,0.03844203]
[1739397884547,0.03415615,196.15,196.12,5.0984]
[1739397886050,0.03415615,196.15,196.11,5.13724203]
[1739397887047,0.03415615,196.15,196.12,5.0984]
[1739397887551,0.03415615,196.15,196.11,0.03844203]
[1739397887744,0.03415615,196.15,196.14,5.0981]
[1739397888144,0.03415615,196.15,196.11,0.03844203]
[1739397888352,0.03415615,196.15,196.12,5.0984]
[1739397888748,0.03415615,196.15,196.11,0.03844203]
[1739397889146,0.03415615,196.15,196.12,5.0986]
[1739397889958,0.03415615,196.15,196.13,5.0983]
[1739397890555,0.03415615,196.15,196.14,5.0981]
[1739397892559,0.03415615,196.15,196.13,5.0983]
[1739397892962,0.03415615,196.15,196.11,0.03844203]
[1739397893164,0.03415615,196.15,196.12,5.0985]
[1739397894360,5.13205615,196.15,196.12,5.0985]
[1739397894958,5.0984,196.13,196.11,0.03844203]
[1739397895367,0.03415615,196.15,196.11,0.03844203]
[1739397895566,5.0985,196.13,196.11,0.03844203]
[1739397896663,0.03415615,196.15,196.11,0.03844203]
[1739397897360,0.03415615,196.15,196.13,5.0981]
[1739397897764,0.03415615,196.15,196.11,0.03844203]
[1739397898263,0.03415615,196.15,196.14,5.0981]
[1739397899470,0.03415615,196.15,196.12,5.0986]
[1739397900262,0.03415615,196.15,196.11,0.03844203]
[1739397900667,14.05841975,196.14,196.11,0.03844203]
[1739397900874,5.0986,196.12,196.11,0.03844203]
[1739397901474,5.0996,196.09,196.04,5.1007]
[1739397902066,5.0999,196.08,196.03,5.1009]
[1739397902266,14.05841975,196.11,196.01,1.6077]
[1739397902465,0.03229768,196.08,196.04,0.03549979]
[1739397902868,5.1,196.07,196.04,0.03549979]
[1739397903468,0.03229768,196.08,196.04,5.13599979]
[1739397903671,0.03229768,196.08,196.04,0.03549979]
[1739397904171,5.1,196.07,196.04,0.03549979]
[1739397909569,5.1002,196.06,196.04,0.03549979]
[1739397910269,0.03229768,196.08,196.04,0.03549979]
[1739397910474,5.1004,196.05,196.04,0.03549979]
[1739397912978,5.1002,196.06,196.04,0.03549979]
[1739397913376,5.1004,196.05,196.04,0.03549979]
[1739397913568,0.03229768,196.08,196.04,0.03549979]
[1739397914278,5.1,196.07,196.04,0.03549979]
[1739397916180,5.13199768,196.08,196.04,5.13599979]
[1739397916575,0.03229768,196.08,196.04,0.03549979]
[1739397918276,5.1004,196.05,196.04,0.03549979]
[1739397924089,0.03229768,196.08,196.0,25.0]
[1739397924281,5.1015,196.01,196.0,25.0]
[1739397924984,5.1015,196.01,196.0,16.942]
[1739397925181,5.1015,196.01,196.0,0.0099]
[1739397925380,6.02835865,196.01,196.0,0.0099]
[1739397926679,5.1015,196.01,196.0,0.0099]
[1739397927079,5.1017,196.0,195.99,0.03315557]
[1739397927276,0.03853096,196.02,195.89,4.7202]
[1739397927477,3.111,196.07,195.89,4.7202]
[1739397927686,0.92685714,196.06,195.93,5.1036]
[1739397928487,0.03608021,196.01,195.98,0.03320377]
[1739397929287,5.1017,196.0,195.98,0.03320377]
[1739397929487,0.03608021,196.01,195.98,0.03320377]
[1739397929887,5.102,195.99,195.98,0.03320377]
[1739397936496,0.03608021,196.01,195.91,5.104]
[1739397936497,5.103,195.96,195.91,5.104]
[1739397936795,3.1056,196.0,195.91,5.104]
[1739397937000,0.92699174,195.99,195.91,5.104]
[1739397937491,0.03418625,195.97,195.93,0.03578953]
[1739397937692,5.1032,195.95,195.93,0.03578953]
[1739397938489,5.1033,195.94,195.93,0.03578953]
[1739397944804,5.1028,195.96,195.93,0.03578953]
[1739397945100,0.03418625,195.97,195.93,0.03578953]
[1739397945603,5.1028,195.96,195.93,0.03578953]
[1739397946004,5.1033,195.95,195.93,0.03578953]
[1739397949503,5.1029,195.96,195.93,0.03578953]
[1739397950006,5.103,195.95,195.93,0.03578953]
[1739397950207,0.03418625,195.97,195.93,0.03578953]
[1739397950604,5.1031,195.95,195.93,0.03578953]
[1739397951108,5.1028,195.96,195.93,0.03578953]
[1739397953012,0.03418625,195.97,195.95,5.103]
[1739397953210,0.03418625,195.97,195.93,0.03578953]
[1739397953509,0.03418625,195.97,195.96,5.1028]
[1739397953902,0.03418625,195.97,195.93,0.03578953]
[1739397954105,0.03418625,195.97,195.95,5.103]
[1739397954500,0.03418625,195.97,195.93,0.03578953]
[1739397954705,0.03418625,195.97,195.96,5.1028]
[1739397956209,0.03418625,195.97,195.95,5.103]
[1739397956409,0.03418625,195.97,195.93,0.03578953]
[1739397957809,0.03418625,195.97,195.96,5.1028]
[1739397958009,101.08,196.08,195.94,4.7802]
[1739397958313,4.50666241,196.07,195.94,4.7802]
[1739397958509,0.92666241,196.06,195.94,4.7802]
[1739397958713,0.92666241,196.11,195.94,4.7802]
[1739397958908,0.92666241,196.1,195.94,4.7802]
[1739397959110,5.1014,196.02,196.01,0.03259283]
[1739397964019,5.13687903,196.03,196.01,0.03259283]
[1739397964713,5.13687903,196.03,196.01,5.13399283]
[1739397964714,0.03587903,196.03,196.01,5.13399283]
[1739397964912,0.03587903,196.03,196.01,0.03259283]
[1739397965318,0.03587903,196.03,196.02,5.1012]
[1739397968126,0.03587903,196.03,196.01,5.13399283]
[1739397968721,0.03587903,196.03,196.02,5.1012]
[1739397968917,190.0,196.13,196.01,0.03259283]
[1739397969226,190.0,196.13,195.94,4.7802]
[1739397969227,0.92647416,196.12,195.94,4.7802]
[1739397969620,5.1003,196.06,196.01,5.1013]
[1739397969820,190.0,196.13,195.94,14.9867]
[1739397970022,0.03251825,196.05,196.02,0.03834959]
[1739397970222,10.1942,196.18,195.94,14.9867]
[1739397970428,0.92639237,196.16,195.94,14.9867]
[1739397970626,5.0999,196.07,195.94,14.9867]
[1739397971430,5.0999,196.07,196.03,5.1008]
[1739397971740,5.1003,196.06,196.03,5.1008]
[1739397971941,5.1003,196.06,196.03,5.13999485]
[1739397973144,5.1003,196.06,196.04,5.1007]
[1739397973438,5.13735302,196.07,196.04,5.1007]
[1739397975442,0.03735302,196.07,196.03,0.03919485]
[1739397975643,0.03735302,196.07,196.04,5.1006]
[1739397976438,0.03735302,196.07,196.03,0.03919485]
[1739397977035,5.1004,196.06,196.03,0.03919485]
[1739397977943,5.1005,196.05,196.03,5.13999485]
[1739397978144,0.03735302,196.07,196.03,5.13999485]
[1739397978543,0.03735302,196.07,196.03,0.03919485]
[1739397979344,5.1007,196.04,196.03,0.03919485]
[1739397984654,5.1007,196.04,196.03,9.485e-05]
[1739397984944,6.02737962,196.04,196.03,9.485e-05]
[1739397985145,6.02747226,196.04,196.03,9.485e-05]
[1739397986249,0.03735302,196.07,196.03,9.485e-05]
[1739397986947,5.1007,196.04,196.03,9.485e-05]
[1739397987246,6.02740647,196.04,196.03,9.485e-05]
[1739397987751,6.02749414,196.04,196.03,9.485e-05]
[1739397988841,6.0276405,196.04,196.03,9.485e-05]
[1739397992452,5.1007,196.04,196.03,9.485e-05]
[1739397992752,6.02784926,196.04,196.03,9.485e-05]
[1739397994151,6.02787494,196.04,196.03,9.485e-05]
[1739397995951,6.02787398,196.04,196.03,9.485e-05]
[1739397997655,5.1007,196.04,196.03,9.485e-05]
[1739397997856,6.027732,196.04,196.03,9.485e-05]